[Event "Titled Tuesday Blitz June 20 Late 2023"]
[White "Mikhalsky, Vladimir"]
[Black "Perez, Maximiliano"]
[WhiteFideId "14144352"]
[BlackFideId "117234"]
[WhiteElo "2236"]
[BlackElo "2334"]
[Result "1-0"]
[Round "5"]
[TimeControl "180+2"]
[Date "2023.06.20"]
[WhiteClock "0:00:08"]
[BlackClock "0:00:06"]
[Board "100"]

1. d4 {[%clk 0:02:53]}  Nf6 {[%clk 0:02:58]} 2. c4 {[%clk 0:02:52]}  e6 {[%clk 0:02:58]} 3. g3 {[%clk 0:02:51]}  d5 {[%clk 0:02:58]} 4. Bg2 {[%clk 0:02:51]}  Bb4+ {[%clk 0:02:59]} 5. Bd2 {[%clk 0:02:49]}  Be7 {[%clk 0:02:58]} 6. Nf3 {[%clk 0:02:48]}  O-O {[%clk 0:02:59]} 7. O-O {[%clk 0:02:48]}  Nbd7 {[%clk 0:02:57]} 8. Nc3 {[%clk 0:02:39]}  dxc4 {[%clk 0:02:57]} 9. a4 {[%clk 0:02:39]}  a5 {[%clk 0:02:56]} 10. e4 {[%clk 0:02:32]}  c5 {[%clk 0:02:40]} 11. e5 {[%clk 0:02:17]}  Nd5 {[%clk 0:02:40]} 12. Qe2 {[%clk 0:01:58]}  Nxc3 {[%clk 0:02:20]} 13. Bxc3 {[%clk 0:01:56]}  Nb6 {[%clk 0:02:15]} 14. Rfd1 {[%clk 0:01:48]}  Qc7 {[%clk 0:02:13]} 15. h4 {[%clk 0:01:29]}  Bd7 {[%clk 0:02:12]} 16. Ng5 {[%clk 0:01:29]}  h6 {[%clk 0:02:10]} 17. Ne4 {[%clk 0:01:26]}  Bxa4 {[%clk 0:02:04]} 18. dxc5 {[%clk 0:01:03]}  Bxd1 {[%clk 0:01:32]} 19. cxb6 {[%clk 0:01:02]}  Bxe2 {[%clk 0:01:33]} 20. bxc7 {[%clk 0:01:02]}  Rfc8 {[%clk 0:01:07]} 21. Rxa5 {[%clk 0:01:02]}  Rxa5 {[%clk 0:01:00]} 22. Bxa5 {[%clk 0:01:02]}  Bd1 {[%clk 0:00:44]} 23. Nd6 {[%clk 0:01:00]}  Bxd6 {[%clk 0:00:44]} 24. exd6 {[%clk 0:00:59]}  Ba4 {[%clk 0:00:45]} 25. Bxb7 {[%clk 0:00:57]}  Bd7 {[%clk 0:00:46]} 26. Bxc8 {[%clk 0:00:35]}  Bxc8 {[%clk 0:00:47]} 27. Kf1 {[%clk 0:00:35]}  Kf8 {[%clk 0:00:47]} 28. Bb4 {[%clk 0:00:31]}  Ke8 {[%clk 0:00:47]} 29. Ke2 {[%clk 0:00:31]}  Kd7 {[%clk 0:00:46]} 30. Ke3 {[%clk 0:00:30]}  Bb7 {[%clk 0:00:37]} 31. Kd4 {[%clk 0:00:28]}  Ba6 {[%clk 0:00:35]} 32. Kc5 {[%clk 0:00:24]}  g6 {[%clk 0:00:18]} 33. Bd2 {[%clk 0:00:20]}  h5 {[%clk 0:00:18]} 34. Bb4 {[%clk 0:00:18]}  f5 {[%clk 0:00:14]} 35. Kb6 {[%clk 0:00:16]}  Bc8 {[%clk 0:00:13]} 36. Kc5 {[%clk 0:00:14]}  Ba6 {[%clk 0:00:13]} 37. Kd4 {[%clk 0:00:13]}  Bb7 {[%clk 0:00:13]} 38. Ke5 {[%clk 0:00:14]}  Bd5 {[%clk 0:00:12]} 39. Kf6 {[%clk 0:00:14]}  Bf3 {[%clk 0:00:10]} 40. Kxg6 {[%clk 0:00:14]}  Bg4 {[%clk 0:00:11]} 41. Kf6 {[%clk 0:00:14]}  f4 {[%clk 0:00:09]} 42. gxf4 {[%clk 0:00:13]}  Bf5 {[%clk 0:00:09]} 43. Kg5 {[%clk 0:00:12]}  Bg4 {[%clk 0:00:09]} 44. Kf6 {[%clk 0:00:13]}  Bf5 {[%clk 0:00:09]} 45. Ke5 {[%clk 0:00:13]}  Bg4 {[%clk 0:00:09]} 46. Kd4 {[%clk 0:00:13]}  Be2 {[%clk 0:00:10]} 47. Kc5 {[%clk 0:00:13]}  Bd3 {[%clk 0:00:09]} 48. Kb6 {[%clk 0:00:13]}  Kc8 {[%clk 0:00:08]} 49. Kc6 {[%clk 0:00:10]}  Be4+ {[%clk 0:00:08]} 50. Kc5 {[%clk 0:00:11]}  Bd3 {[%clk 0:00:09]} 51. Kd4 {[%clk 0:00:10]}  Kd7 {[%clk 0:00:09]} 52. Ke5 {[%clk 0:00:10]}  Bf5 {[%clk 0:00:10]} 53. Kf6 {[%clk 0:00:10]}  Bg4 {[%clk 0:00:10]} 54. Bc5 {[%clk 0:00:09]}  Bh3 {[%clk 0:00:09]} 55. c8=Q+ {[%clk 0:00:08]}  Kxc8 {[%clk 0:00:10]} 56. Ke7 {[%clk 0:00:08]}  e5 {[%clk 0:00:06]} 57. fxe5 {[%clk 0:00:08]}  c3 {[%clk 0:00:06]} 58. bxc3 {[%clk 0:00:08]}  Bg4 {[%clk 0:00:06]} 59. e6 {[%clk 0:00:08]}  Kb7 {[%clk 0:00:06]} 60. d7 {[%clk 0:00:08]} 1-0


[Site "https://www.chess.com"]

[Event "Titled Tuesday Blitz June 20 Late 2023"]
[White "O`Gorman, Tom"]
[Black "Stachanczyk, Jacek"]
[WhiteFideId "2508249"]
[BlackFideId "1116657"]
[WhiteElo "2299"]
[BlackElo "2084"]
[Result "1-0"]
[Round "5"]
[TimeControl "180+2"]
[Date "2023.06.20"]
[WhiteClock "0:00:18"]
[BlackClock "0:00:00"]
[Board "101"]

1. e4 {[%clk 0:03:00]}  c5 {[%clk 0:02:57]} 2. Nf3 {[%clk 0:02:59]}  d6 {[%clk 0:02:57]} 3. c3 {[%clk 0:02:59]}  Nf6 {[%clk 0:02:55]} 4. Be2 {[%clk 0:02:57]}  Nc6 {[%clk 0:02:55]} 5. d4 {[%clk 0:02:56]}  Bd7 {[%clk 0:02:17]} 6. d5 {[%clk 0:02:48]}  Nb8 {[%clk 0:02:12]} 7. Nbd2 {[%clk 0:02:47]}  g6 {[%clk 0:02:11]} 8. O-O {[%clk 0:02:43]}  Bg7 {[%clk 0:02:12]} 9. c4 {[%clk 0:02:40]}  O-O {[%clk 0:02:09]} 10. Bd3 {[%clk 0:02:39]}  b5 {[%clk 0:02:06]} 11. cxb5 {[%clk 0:02:37]}  a6 {[%clk 0:02:07]} 12. bxa6 {[%clk 0:02:36]}  Nxa6 {[%clk 0:02:08]} 13. Re1 {[%clk 0:02:32]}  Bg4 {[%clk 0:02:04]} 14. h3 {[%clk 0:02:31]}  Bxf3 {[%clk 0:02:04]} 15. Nxf3 {[%clk 0:02:32]}  Nd7 {[%clk 0:02:02]} 16. Bb5 {[%clk 0:02:16]}  Ne5 {[%clk 0:01:52]} 17. Nxe5 {[%clk 0:02:13]}  Bxe5 {[%clk 0:01:53]} 18. Qe2 {[%clk 0:02:05]}  Nc7 {[%clk 0:01:43]} 19. Bc6 {[%clk 0:02:03]}  Rb8 {[%clk 0:01:43]} 20. Rb1 {[%clk 0:02:01]}  Bg7 {[%clk 0:01:42]} 21. Bf4 {[%clk 0:01:52]}  e5 {[%clk 0:01:37]} 22. Bd2 {[%clk 0:01:49]}  f5 {[%clk 0:01:35]} 23. f3 {[%clk 0:01:48]}  Rb6 {[%clk 0:01:17]} 24. Ba5 {[%clk 0:01:45]}  Rb8 {[%clk 0:01:10]} 25. b4 {[%clk 0:01:44]}  cxb4 {[%clk 0:01:05]} 26. Rxb4 {[%clk 0:01:42]}  fxe4 {[%clk 0:01:06]} 27. fxe4 {[%clk 0:01:41]}  Qe7 {[%clk 0:00:50]} 28. Reb1 {[%clk 0:01:36]}  Rxb4 {[%clk 0:00:48]} 29. Rxb4 {[%clk 0:01:36]}  Ne8 {[%clk 0:00:47]} 30. Rb7 {[%clk 0:01:29]}  Qh4 {[%clk 0:00:47]} 31. Be1 {[%clk 0:01:24]}  Qf4 {[%clk 0:00:41]} 32. Bd2 {[%clk 0:01:23]}  Qh4 {[%clk 0:00:41]} 33. a4 {[%clk 0:01:14]}  Nf6 {[%clk 0:00:40]} 34. Rb4 {[%clk 0:01:10]}  Nh5 {[%clk 0:00:20]} 35. Be1 {[%clk 0:01:00]}  Qf4 {[%clk 0:00:20]} 36. Rb3 {[%clk 0:00:55]}  Bh6 {[%clk 0:00:18]} 37. Rf3 {[%clk 0:00:53]}  Qc1 {[%clk 0:00:18]} 38. Rxf8+ {[%clk 0:00:52]}  Kxf8 {[%clk 0:00:16]} 39. a5 {[%clk 0:00:51]}  Nf4 {[%clk 0:00:14]} 40. Qf2 {[%clk 0:00:49]}  Kg7 {[%clk 0:00:12]} 41. Kf1 {[%clk 0:00:28]}  Qc4+ {[%clk 0:00:06]} 42. Kg1 {[%clk 0:00:28]}  Qc1 {[%clk 0:00:07]} 43. Qf1 {[%clk 0:00:24]}  Bg5 {[%clk 0:00:06]} 44. a6 {[%clk 0:00:19]}  Qa1 {[%clk 0:00:05]} 45. h4 {[%clk 0:00:18]}  Bd8 {[%clk 0:00:04]} 46. g3 {[%clk 0:00:18]}  Bb6+ {[%clk 0:00:04]} 47. Kh2 {[%clk 0:00:18]}  Qa2+ {[%clk 0:00:03]} 48. Kh1 {[%clk 0:00:18]}  Nh5 {[%clk 0:00:00]} 49. Be8 {[%clk 0:00:18]} 1-0


[Site "https://www.chess.com"]

[Event "Titled Tuesday Blitz June 20 Late 2023"]
[White "Hoffmann, Asa"]
[Black "Ismayil, Malak"]
[WhiteFideId "2001470"]
[BlackFideId "13412604"]
[WhiteElo "2117"]
[BlackElo "1868"]
[Result "1-0"]
[Round "5"]
[TimeControl "180+2"]
[Date "2023.06.20"]
[WhiteClock "0:00:48"]
[BlackClock "0:00:00"]
[Board "103"]

1. d4 {[%clk 0:02:59]}  Nf6 {[%clk 0:01:36]} 2. Bg5 {[%clk 0:02:58]}  e6 {[%clk 0:01:35]} 3. Nd2 {[%clk 0:02:57]}  d5 {[%clk 0:01:35]} 4. e3 {[%clk 0:02:57]}  Be7 {[%clk 0:01:35]} 5. Bd3 {[%clk 0:02:56]}  O-O {[%clk 0:01:36]} 6. f4 {[%clk 0:02:56]}  c5 {[%clk 0:01:37]} 7. c3 {[%clk 0:02:56]}  Nc6 {[%clk 0:01:36]} 8. Ngf3 {[%clk 0:02:56]}  h6 {[%clk 0:01:35]} 9. Bh4 {[%clk 0:02:56]}  Nd7 {[%clk 0:01:36]} 10. Bg3 {[%clk 0:02:55]}  a6 {[%clk 0:01:35]} 11. O-O {[%clk 0:02:54]}  b5 {[%clk 0:01:35]} 12. Ne5 {[%clk 0:02:54]}  Bb7 {[%clk 0:01:28]} 13. f5 {[%clk 0:02:50]}  Ndxe5 {[%clk 0:01:26]} 14. dxe5 {[%clk 0:02:49]}  exf5 {[%clk 0:01:26]} 15. Bxf5 {[%clk 0:02:42]}  Bc8 {[%clk 0:01:26]} 16. Qg4 {[%clk 0:02:41]}  Bxf5 {[%clk 0:01:24]} 17. Rxf5 {[%clk 0:02:40]}  Bg5 {[%clk 0:01:22]} 18. Nf1 {[%clk 0:02:34]}  Ne7 {[%clk 0:01:20]} 19. Rf3 {[%clk 0:02:26]}  Ng6 {[%clk 0:01:08]} 20. Rd1 {[%clk 0:02:20]}  Ra7 {[%clk 0:01:01]} 21. e4 {[%clk 0:02:12]}  d4 {[%clk 0:00:52]} 22. cxd4 {[%clk 0:02:06]}  cxd4 {[%clk 0:00:52]} 23. e6 {[%clk 0:01:58]}  fxe6 {[%clk 0:00:48]} 24. Qxe6+ {[%clk 0:01:56]}  Kh7 {[%clk 0:00:48]} 25. Rxf8 {[%clk 0:01:51]}  Nxf8 {[%clk 0:00:49]} 26. Qf5+ {[%clk 0:01:50]}  Kh8 {[%clk 0:00:41]} 27. h4 {[%clk 0:01:48]}  Be7 {[%clk 0:00:34]} 28. Be5 {[%clk 0:01:46]}  Rd7 {[%clk 0:00:28]} 29. Rd3 {[%clk 0:01:43]}  Bxh4 {[%clk 0:00:27]} 30. Nh2 {[%clk 0:01:38]}  Bf6 {[%clk 0:00:27]} 31. Ng4 {[%clk 0:01:37]}  Bg5 {[%clk 0:00:17]} 32. Rf3 {[%clk 0:01:31]}  Kg8 {[%clk 0:00:14]} 33. Bf4 {[%clk 0:01:22]}  Bxf4 {[%clk 0:00:12]} 34. Qxf4 {[%clk 0:01:18]}  Ne6 {[%clk 0:00:08]} 35. Qe5 {[%clk 0:01:13]}  Ng5 {[%clk 0:00:08]} 36. Rg3 {[%clk 0:01:12]}  Qe7 {[%clk 0:00:07]} 37. Qf5 {[%clk 0:01:04]}  d3 {[%clk 0:00:04]} 38. Nf2 {[%clk 0:01:00]}  d2 {[%clk 0:00:04]} 39. Nd1 {[%clk 0:00:59]}  Qxe4 {[%clk 0:00:02]} 40. Qxd7 {[%clk 0:00:54]}  Qe1+ {[%clk 0:00:02]} 41. Kh2 {[%clk 0:00:53]}  Qxd1 {[%clk 0:00:00]} 42. Qd8+ {[%clk 0:00:48]} 1-0


[Site "https://www.chess.com"]

[Event "Titled Tuesday Blitz June 20 Late 2023"]
[White "D`Arruda, Ricardo D."]
[Black "Harshal, Shahi"]
[WhiteFideId "100692"]
[BlackFideId "5048257"]
[WhiteElo "2535"]
[BlackElo "2054"]
[Result "1-0"]
[Round "5"]
[TimeControl "180+2"]
[Date "2023.06.20"]
[WhiteClock "0:02:24"]
[BlackClock "0:01:46"]
[Board "104"]

1. Nf3 {[%clk 0:02:52]}  Nf6 {[%clk 0:02:54]} 2. d4 {[%clk 0:02:52]}  d5 {[%clk 0:02:54]} 3. c4 {[%clk 0:02:51]}  c6 {[%clk 0:02:54]} 4. e3 {[%clk 0:02:50]}  Bf5 {[%clk 0:02:52]} 5. Nc3 {[%clk 0:02:51]}  e6 {[%clk 0:02:52]} 6. Bd3 {[%clk 0:02:51]}  Bg6 {[%clk 0:02:32]} 7. O-O {[%clk 0:02:48]}  Nbd7 {[%clk 0:02:31]} 8. Bxg6 {[%clk 0:02:48]}  hxg6 {[%clk 0:02:31]} 9. Qe2 {[%clk 0:02:46]}  Bd6 {[%clk 0:02:31]} 10. g3 {[%clk 0:02:46]}  Ng4 {[%clk 0:02:29]} 11. e4 {[%clk 0:02:42]}  dxc4 {[%clk 0:02:16]} 12. Qxc4 {[%clk 0:02:36]}  Qf6 {[%clk 0:02:14]} 13. Qe2 {[%clk 0:02:32]}  Qe5 {[%clk 0:02:06]} 14. dxe5 {[%clk 0:02:31]}  Ndxe5 {[%clk 0:01:48]} 15. Nxe5 {[%clk 0:02:30]}  Bxe5 {[%clk 0:01:46]} 16. Qxg4 {[%clk 0:02:24]} 1-0


[Site "https://www.chess.com"]

[Event "Titled Tuesday Blitz June 20 Late 2023"]
[White "Martinez, Ayelen"]
[Black "Ozates, Tuna"]
[WhiteFideId "118702"]
[BlackFideId "6354521"]
[WhiteElo "2074"]
[BlackElo "2151"]
[Result "0-1"]
[Round "5"]
[TimeControl "180+2"]
[Date "2023.06.20"]
[WhiteClock "0:00:00"]
[BlackClock "0:00:35"]
[Board "106"]

1. e4 {[%clk 0:03:00]}  e5 {[%clk 0:02:26]} 2. Nf3 {[%clk 0:03:00]}  Nc6 {[%clk 0:02:24]} 3. Bb5 {[%clk 0:03:00]}  a6 {[%clk 0:02:25]} 4. Ba4 {[%clk 0:03:01]}  Nf6 {[%clk 0:02:25]} 5. O-O {[%clk 0:03:00]}  Be7 {[%clk 0:02:25]} 6. h3 {[%clk 0:02:58]}  b5 {[%clk 0:02:24]} 7. Bb3 {[%clk 0:02:58]}  O-O {[%clk 0:02:25]} 8. Re1 {[%clk 0:02:57]}  d6 {[%clk 0:02:22]} 9. c3 {[%clk 0:02:57]}  Na5 {[%clk 0:02:19]} 10. Bc2 {[%clk 0:02:58]}  c5 {[%clk 0:02:19]} 11. d4 {[%clk 0:02:59]}  Qc7 {[%clk 0:02:20]} 12. Nbd2 {[%clk 0:02:59]}  Nc6 {[%clk 0:02:17]} 13. Nf1 {[%clk 0:02:56]}  Re8 {[%clk 0:02:16]} 14. Ng3 {[%clk 0:02:53]}  h6 {[%clk 0:02:16]} 15. a4 {[%clk 0:02:52]}  Rb8 {[%clk 0:02:14]} 16. axb5 {[%clk 0:02:49]}  axb5 {[%clk 0:02:14]} 17. Be3 {[%clk 0:02:35]}  Bf8 {[%clk 0:02:13]} 18. d5 {[%clk 0:01:45]}  Nd8 {[%clk 0:02:01]} 19. b4 {[%clk 0:01:44]}  Nb7 {[%clk 0:01:53]} 20. Ra6 {[%clk 0:01:37]}  g6 {[%clk 0:01:45]} 21. Rc6 {[%clk 0:01:28]}  Qd8 {[%clk 0:01:45]} 22. bxc5 {[%clk 0:01:25]}  dxc5 {[%clk 0:01:41]} 23. Qd2 {[%clk 0:00:55]}  Kh7 {[%clk 0:01:38]} 24. Nxe5 {[%clk 0:00:28]}  Rxe5 {[%clk 0:01:24]} 25. Bf4 {[%clk 0:00:29]}  Nd7 {[%clk 0:01:21]} 26. Qe2 {[%clk 0:00:20]}  Na5 {[%clk 0:01:09]} 27. Bxe5 {[%clk 0:00:12]}  Nxe5 {[%clk 0:01:09]} 28. f4 {[%clk 0:00:13]}  Nexc6 {[%clk 0:01:08]} 29. dxc6 {[%clk 0:00:13]}  Nxc6 {[%clk 0:01:08]} 30. e5 {[%clk 0:00:14]}  Qh4 {[%clk 0:01:01]} 31. Qf3 {[%clk 0:00:13]}  Bb7 {[%clk 0:00:56]} 32. Rd1 {[%clk 0:00:12]}  Nd4 {[%clk 0:00:55]} 33. Bxg6+ {[%clk 0:00:06]}  fxg6 {[%clk 0:00:52]} 34. Qf2 {[%clk 0:00:05]}  Qxg3 {[%clk 0:00:51]} 35. Qxg3 {[%clk 0:00:05]}  Ne2+ {[%clk 0:00:52]} 36. Kh2 {[%clk 0:00:04]}  Nxg3 {[%clk 0:00:53]} 37. Rd7+ {[%clk 0:00:04]}  Bg7 {[%clk 0:00:52]} 38. Kxg3 {[%clk 0:00:04]}  Bc8 {[%clk 0:00:51]} 39. Rd8 {[%clk 0:00:04]}  b4 {[%clk 0:00:49]} 40. cxb4 {[%clk 0:00:04]}  cxb4 {[%clk 0:00:50]} 41. e6 {[%clk 0:00:04]}  Bf6 {[%clk 0:00:43]} 42. Rf8 {[%clk 0:00:03]}  Kg7 {[%clk 0:00:42]} 43. Rf7+ {[%clk 0:00:04]}  Kg8 {[%clk 0:00:42]} 44. Rxf6 {[%clk 0:00:04]}  b3 {[%clk 0:00:41]} 45. e7 {[%clk 0:00:05]}  Bd7 {[%clk 0:00:42]} 46. Rxg6+ {[%clk 0:00:05]}  Kf7 {[%clk 0:00:42]} 47. Rxh6 {[%clk 0:00:03]}  b2 {[%clk 0:00:42]} 48. Rh7+ {[%clk 0:00:03]}  Ke6 {[%clk 0:00:41]} 49. f5+ {[%clk 0:00:03]}  Kd5 {[%clk 0:00:37]} 50. f6 {[%clk 0:00:03]}  b1=Q {[%clk 0:00:37]} 51. Rh5+ {[%clk 0:00:02]}  Ke6 {[%clk 0:00:36]} 52. f7 {[%clk 0:00:00]}  Kxf7 {[%clk 0:00:35]} 0-1


[Site "https://www.chess.com"]

[Event "Titled Tuesday Blitz June 20 Late 2023"]
[White "Rodriguez Santiago, Jaime"]
[Black "FoxOnTheRun97"]
[WhiteFideId "3100898"]
[WhiteElo "2025"]
[BlackElo "2528"]
[Result "0-1"]
[Round "5"]
[TimeControl "180+2"]
[Date "2023.06.20"]
[WhiteClock "0:01:04"]
[BlackClock "0:00:42"]
[Board "107"]

1. c4 {[%clk 0:02:54]}  Nf6 {[%clk 0:02:55]} 2. Nc3 {[%clk 0:02:53]}  c6 {[%clk 0:02:54]} 3. d4 {[%clk 0:02:50]}  d5 {[%clk 0:02:55]} 4. cxd5 {[%clk 0:02:47]}  cxd5 {[%clk 0:02:56]} 5. Bf4 {[%clk 0:02:47]}  a6 {[%clk 0:02:53]} 6. e3 {[%clk 0:02:46]}  Nc6 {[%clk 0:02:51]} 7. Be2 {[%clk 0:02:40]}  e6 {[%clk 0:02:46]} 8. a3 {[%clk 0:02:33]}  Bd6 {[%clk 0:02:43]} 9. Bg5 {[%clk 0:02:29]}  b5 {[%clk 0:02:17]} 10. f4 {[%clk 0:02:22]}  Bb7 {[%clk 0:02:12]} 11. Nf3 {[%clk 0:02:21]}  Na5 {[%clk 0:02:02]} 12. O-O {[%clk 0:02:17]}  Nc4 {[%clk 0:01:56]} 13. Bxc4 {[%clk 0:02:12]}  dxc4 {[%clk 0:01:50]} 14. Ne5 {[%clk 0:02:12]}  Be7 {[%clk 0:01:45]} 15. Rc1 {[%clk 0:01:51]}  O-O {[%clk 0:01:31]} 16. Qe2 {[%clk 0:01:42]}  Ne4 {[%clk 0:01:29]} 17. Bxe7 {[%clk 0:01:38]}  Qxe7 {[%clk 0:01:29]} 18. Nxe4 {[%clk 0:01:34]}  Bxe4 {[%clk 0:01:30]} 19. Rf2 {[%clk 0:01:28]}  Rfe8 {[%clk 0:01:23]} 20. Rcf1 {[%clk 0:01:27]}  f6 {[%clk 0:01:20]} 21. Nf3 {[%clk 0:01:23]}  Bd3 {[%clk 0:01:20]} 22. Qd2 {[%clk 0:01:20]}  Bxf1 {[%clk 0:01:19]} 23. Rxf1 {[%clk 0:01:21]}  Rad8 {[%clk 0:01:18]} 24. g4 {[%clk 0:01:20]}  e5 {[%clk 0:01:05]} 25. fxe5 {[%clk 0:01:19]}  fxe5 {[%clk 0:01:03]} 26. Qf2 {[%clk 0:01:10]}  exd4 {[%clk 0:00:59]} 27. exd4 {[%clk 0:01:10]}  Qe3 {[%clk 0:00:58]} 28. Qxe3 {[%clk 0:01:10]}  Rxe3 {[%clk 0:00:59]} 29. Kf2 {[%clk 0:01:09]}  Rd3 {[%clk 0:00:51]} 30. Re1 {[%clk 0:01:04]}  Rf8 {[%clk 0:00:42]} 0-1


[Site "https://www.chess.com"]

[Event "Titled Tuesday Blitz June 20 Late 2023"]
[White "Sanchez, Robert"]
[Black "Petukhov, Dmitry"]
[WhiteFideId "2034360"]
[BlackFideId "4142748"]
[WhiteElo "2080"]
[BlackElo "2311"]
[Result "0-1"]
[Round "5"]
[TimeControl "180+2"]
[Date "2023.06.20"]
[WhiteClock "0:02:07"]
[BlackClock "0:02:16"]
[Board "111"]

1. e4 {[%clk 0:02:43]}  c5 {[%clk 0:02:57]} 2. Nf3 {[%clk 0:02:40]}  d6 {[%clk 0:02:57]} 3. d4 {[%clk 0:02:40]}  cxd4 {[%clk 0:02:57]} 4. Nxd4 {[%clk 0:02:41]}  Nf6 {[%clk 0:02:56]} 5. Nc3 {[%clk 0:02:40]}  Nc6 {[%clk 0:02:56]} 6. Bg5 {[%clk 0:02:40]}  Bd7 {[%clk 0:02:56]} 7. f3 {[%clk 0:02:38]}  Rc8 {[%clk 0:02:55]} 8. Qd2 {[%clk 0:02:38]}  Nxd4 {[%clk 0:02:55]} 9. Qxd4 {[%clk 0:02:38]}  Qa5 {[%clk 0:02:56]} 10. Bd2 {[%clk 0:02:34]}  Qc5 {[%clk 0:02:55]} 11. Qd3 {[%clk 0:02:32]}  a6 {[%clk 0:02:51]} 12. O-O-O {[%clk 0:02:31]}  g6 {[%clk 0:02:47]} 13. Kb1 {[%clk 0:02:28]}  Bg7 {[%clk 0:02:47]} 14. h4 {[%clk 0:02:27]}  Be6 {[%clk 0:02:32]} 15. Be3 {[%clk 0:02:12]}  Qa5 {[%clk 0:02:30]} 16. Nd5 {[%clk 0:02:07]}  Nxd5 {[%clk 0:02:18]} 17. exd5 {[%clk 0:02:06]}  Bf5 {[%clk 0:02:18]} 18. Qxf5 {[%clk 0:02:06]}  gxf5 {[%clk 0:02:16]} 19. Bd3 {[%clk 0:02:07]} 0-1


[Site "https://www.chess.com"]

[Event "Titled Tuesday Blitz June 20 Late 2023"]
[White "Tomiello, Lucas Costamilan"]
[Black "Seletsky, Grigory"]
[WhiteFideId "22701940"]
[BlackFideId "14112191"]
[WhiteElo "2116"]
[BlackElo "2491"]
[Result "1-0"]
[Round "5"]
[TimeControl "180+2"]
[Date "2023.06.20"]
[WhiteClock "0:00:12"]
[BlackClock "0:00:00"]
[Board "114"]

1. e4 {[%clk 0:03:00]}  c5 {[%clk 0:02:26]} 2. Nf3 {[%clk 0:03:01]}  d6 {[%clk 0:02:24]} 3. d4 {[%clk 0:03:00]}  cxd4 {[%clk 0:02:25]} 4. Nxd4 {[%clk 0:03:01]}  Nf6 {[%clk 0:02:24]} 5. Nc3 {[%clk 0:03:02]}  a6 {[%clk 0:02:25]} 6. Bc4 {[%clk 0:03:00]}  e6 {[%clk 0:02:20]} 7. Bb3 {[%clk 0:02:57]}  Qc7 {[%clk 0:02:20]} 8. Be3 {[%clk 0:02:55]}  Nc6 {[%clk 0:02:16]} 9. Qe2 {[%clk 0:02:44]}  Be7 {[%clk 0:02:14]} 10. O-O-O {[%clk 0:02:43]}  O-O {[%clk 0:02:02]} 11. f3 {[%clk 0:02:33]}  b5 {[%clk 0:02:00]} 12. g4 {[%clk 0:02:28]}  Nxd4 {[%clk 0:01:58]} 13. Bxd4 {[%clk 0:02:27]}  Bb7 {[%clk 0:01:59]} 14. a3 {[%clk 0:02:18]}  Rac8 {[%clk 0:01:58]} 15. Kb1 {[%clk 0:02:15]}  Rfd8 {[%clk 0:01:55]} 16. f4 {[%clk 0:02:04]}  d5 {[%clk 0:01:40]} 17. e5 {[%clk 0:02:02]}  Ne4 {[%clk 0:01:39]} 18. Nxe4 {[%clk 0:02:02]}  dxe4 {[%clk 0:01:39]} 19. f5 {[%clk 0:01:58]}  Bd5 {[%clk 0:01:36]} 20. Bxd5 {[%clk 0:01:51]}  Rxd5 {[%clk 0:01:15]} 21. Qxe4 {[%clk 0:01:48]}  Rcd8 {[%clk 0:01:02]} 22. Rd3 {[%clk 0:01:38]}  Qc4 {[%clk 0:00:50]} 23. Rhd1 {[%clk 0:01:29]}  g6 {[%clk 0:00:44]} 24. f6 {[%clk 0:01:21]}  Bf8 {[%clk 0:00:33]} 25. b3 {[%clk 0:01:15]}  Qc6 {[%clk 0:00:28]} 26. Bb2 {[%clk 0:00:38]}  Rxd3 {[%clk 0:00:21]} 27. Qxc6 {[%clk 0:00:38]}  Rxd1+ {[%clk 0:00:20]} 28. Ka2 {[%clk 0:00:38]}  R1d2 {[%clk 0:00:13]} 29. a4 {[%clk 0:00:31]}  b4 {[%clk 0:00:12]} 30. a5 {[%clk 0:00:24]}  Rg2 {[%clk 0:00:11]} 31. Bc1 {[%clk 0:00:17]}  Rxg4 {[%clk 0:00:09]} 32. Qxa6 {[%clk 0:00:16]}  Rg2 {[%clk 0:00:07]} 33. Kb1 {[%clk 0:00:16]}  h5 {[%clk 0:00:05]} 34. Qf1 {[%clk 0:00:15]}  Rxh2 {[%clk 0:00:03]} 35. a6 {[%clk 0:00:15]}  Rc8 {[%clk 0:00:00]} 36. Qd1 {[%clk 0:00:12]} 1-0


[Site "https://www.chess.com"]

[Event "Titled Tuesday Blitz June 20 Late 2023"]
[White "Paulsen, Dirk"]
[Black "Garcia Ramos, Daniel"]
[WhiteFideId "4601343"]
[BlackFideId "32010311"]
[WhiteElo "2339"]
[BlackElo "2341"]
[Result "0-1"]
[Round "5"]
[TimeControl "180+2"]
[Date "2023.06.20"]
[WhiteClock "0:01:15"]
[BlackClock "0:02:20"]
[Board "116"]

1. d4 {[%clk 0:03:00]}  d5 {[%clk 0:02:56]} 2. c4 {[%clk 0:03:00]}  e6 {[%clk 0:02:56]} 3. Nf3 {[%clk 0:02:59]}  Nf6 {[%clk 0:02:56]} 4. Nc3 {[%clk 0:02:59]}  c5 {[%clk 0:02:56]} 5. e3 {[%clk 0:02:57]}  dxc4 {[%clk 0:02:55]} 6. Bxc4 {[%clk 0:02:56]}  a6 {[%clk 0:02:56]} 7. a3 {[%clk 0:02:55]}  b5 {[%clk 0:02:53]} 8. Bd3 {[%clk 0:02:55]}  Bb7 {[%clk 0:02:53]} 9. dxc5 {[%clk 0:02:49]}  Bxc5 {[%clk 0:02:52]} 10. b4 {[%clk 0:02:49]}  Be7 {[%clk 0:02:51]} 11. Bb2 {[%clk 0:02:48]}  Nbd7 {[%clk 0:02:51]} 12. O-O {[%clk 0:02:46]}  O-O {[%clk 0:02:51]} 13. Qe2 {[%clk 0:02:45]}  Rc8 {[%clk 0:02:50]} 14. Rfd1 {[%clk 0:02:44]}  Qc7 {[%clk 0:02:50]} 15. Rac1 {[%clk 0:02:39]}  Qb8 {[%clk 0:02:49]} 16. Ng5 {[%clk 0:02:36]}  h6 {[%clk 0:02:46]} 17. Nge4 {[%clk 0:02:36]}  Ne5 {[%clk 0:02:44]} 18. Nxf6+ {[%clk 0:02:23]}  Bxf6 {[%clk 0:02:44]} 19. Ne4 {[%clk 0:02:22]}  Bxe4 {[%clk 0:02:36]} 20. Bxe4 {[%clk 0:02:22]}  Rxc1 {[%clk 0:02:36]} 21. Rxc1 {[%clk 0:02:21]}  Rc8 {[%clk 0:02:36]} 22. Rxc8+ {[%clk 0:02:15]}  Qxc8 {[%clk 0:02:36]} 23. g3 {[%clk 0:01:59]}  Nc4 {[%clk 0:02:28]} 24. Bxf6 {[%clk 0:01:57]}  gxf6 {[%clk 0:02:29]} 25. Qg4+ {[%clk 0:01:41]}  Kf8 {[%clk 0:02:29]} 26. Qf4 {[%clk 0:01:39]}  Ke7 {[%clk 0:02:27]} 27. Qxh6 {[%clk 0:01:36]}  Nxa3 {[%clk 0:02:27]} 28. Qf4 {[%clk 0:01:28]}  Qc1+ {[%clk 0:02:26]} 29. Kg2 {[%clk 0:01:27]}  Nc4 {[%clk 0:02:21]} 30. Qc7+ {[%clk 0:01:24]}  Kf8 {[%clk 0:02:21]} 31. h4 {[%clk 0:01:15]}  Nxe3+ {[%clk 0:02:20]} 0-1


[Site "https://www.chess.com"]

[Event "Titled Tuesday Blitz June 20 Late 2023"]
[White "Prydun, Andriy"]
[Black "MKlose11"]
[WhiteFideId "14145898"]
[WhiteElo "2164"]
[BlackElo "2583"]
[Result "0-1"]
[Round "5"]
[TimeControl "180+2"]
[Date "2023.06.20"]
[WhiteClock "0:00:12"]
[BlackClock "0:01:51"]
[Board "118"]

1. e4 {[%clk 0:02:57]}  e6 {[%clk 0:02:57]} 2. d4 {[%clk 0:02:56]}  d5 {[%clk 0:02:58]} 3. exd5 {[%clk 0:02:56]}  exd5 {[%clk 0:02:56]} 4. h4 {[%clk 0:02:47]}  Nf6 {[%clk 0:02:57]} 5. h5 {[%clk 0:02:45]}  h6 {[%clk 0:02:46]} 6. Nc3 {[%clk 0:02:41]}  c5 {[%clk 0:02:38]} 7. Bb5+ {[%clk 0:02:37]}  Nc6 {[%clk 0:02:37]} 8. Be3 {[%clk 0:02:36]}  Bg4 {[%clk 0:02:28]} 9. Nge2 {[%clk 0:02:26]}  c4 {[%clk 0:02:23]} 10. b3 {[%clk 0:01:54]}  cxb3 {[%clk 0:02:19]} 11. axb3 {[%clk 0:01:53]}  Bxh5 {[%clk 0:02:18]} 12. Ra6 {[%clk 0:01:53]}  Qd7 {[%clk 0:02:07]} 13. Bxc6 {[%clk 0:00:18]}  bxc6 {[%clk 0:02:05]} 14. Qa1 {[%clk 0:00:18]}  Bb4 {[%clk 0:01:52]} 15. Qa4 {[%clk 0:00:18]}  Bxe2 {[%clk 0:01:52]} 16. Qxb4 {[%clk 0:00:12]}  Bxa6 {[%clk 0:01:51]} 0-1


[Site "https://www.chess.com"]